{"text_format":"3","workbook":"xlsx","n_sheets":4,"sheets":["Übersicht","Summen","Einkünfte","Ausgaben"],"not_rendered":{"defined_names":13},"read":"whole","date_system":"1900"}

{"sheet":"Übersicht","index":0,"n_rows":6,"n_cols":3,"rows_kept":6,"merged":[[0,1,0,2],[1,1,1,2]]}
[null,"FAMILIEN-MONATSBUDGET"]
[null,"ZUSAMMENFASSUNG"]
[null,"Saldo","Betrag"]
[null,"Erwarteter Saldo (erwartete Einnahmen abzüglich der Ausgaben)",{"$f":"ErwarteteEinnahmen-ErwarteteAusgaben","v":{"v":1114,"d":"1,114 €"}}]
[null,"Tatsächlicher Saldo (Tatsächliches Einkommen abzüglich der Ausgaben)",{"$f":"IstEinnahmen-IstAusgaben","v":{"v":997,"d":"997 €"}}]
[null,"Differenz (tatsächlich abzüglich erwartet)",{"$f":"IstSaldo-ErwarteterSaldo","v":{"v":-117,"d":"-117 €"}}]

{"sheet":"Summen","index":1,"n_rows":6,"n_cols":3,"rows_kept":6,"merged":[[0,1,0,2],[1,1,1,2]]}
[null,{"$f":"Arbeitsmappe_Titel","v":"FAMILIEN-MONATSBUDGET"}]
[null,"Summen"]
[null,"Summen","Betrag"]
[null,"Summe der erwarteten Kosten",{"$f":"ErwarteteAusgaben","v":{"v":4486,"d":"4,486 €"}}]
[null,"Summe der tatsächlichen Kosten",{"$f":"IstAusgaben","v":{"v":4603,"d":"4,603 €"}}]
[null,"Gesamtdifferenz",{"$f":"C4-C5","v":{"v":-117,"d":"-117 €"}}]

{"sheet":"Einkünfte","index":2,"n_rows":7,"n_cols":5,"rows_kept":7,"merged":[[0,1,0,4],[1,1,1,4]]}
[null,{"$f":"Arbeitsmappe_Titel","v":"FAMILIEN-MONATSBUDGET"}]
[null,"EINKÜNFTE"]
[null,"Erwartete Einkünfte","Erwartet","Tatsächlich","Differenz"]
[null,"Einkünfte 1",{"v":4000,"d":"4,000.00 €"},{"v":4000,"d":"4,000.00 €"},{"$f":"EinnahmenTabelle[[#This Row],[Erwartet]]-EinnahmenTabelle[[#This Row],[Tatsächlich]]","v":{"v":0,"d":"0.00 €"}}]
[null,"Einkünfte 2",{"v":1300,"d":"1,300.00 €"},{"v":1300,"d":"1,300.00 €"},{"$f":"EinnahmenTabelle[[#This Row],[Erwartet]]-EinnahmenTabelle[[#This Row],[Tatsächlich]]","v":{"v":0,"d":"0.00 €"}}]
[null,"Zusatzeinkünfte",{"v":300,"d":"300.00 €"},{"v":300,"d":"300.00 €"},{"$f":"EinnahmenTabelle[[#This Row],[Erwartet]]-EinnahmenTabelle[[#This Row],[Tatsächlich]]","v":{"v":0,"d":"0.00 €"}}]
[null,"Summe der monatlichen Einkünfte",{"$f":"SUBTOTAL(109,EinnahmenTabelle[Erwartet])","v":{"v":5600,"d":"5,600.00 €"}},{"$f":"SUBTOTAL(109,EinnahmenTabelle[Tatsächlich])","v":{"v":5600,"d":"5,600.00 €"}},{"$f":"SUBTOTAL(109,EinnahmenTabelle[Differenz])","v":{"v":0,"d":"0.00 €"}}]

{"sheet":"Ausgaben","index":3,"n_rows":80,"n_cols":6,"rows_kept":80,"merged":[[0,1,0,5],[1,1,1,5],[2,1,2,5]]}
[null,{"$f":"Arbeitsmappe_Titel","v":"FAMILIEN-MONATSBUDGET"}]
[null,"AUSGABEN"]
[null,"In dieser Zelle befindet sich ein Datenschnitt zum Filtern der Ausgabentabelle nach Kategorie."]
[null,"Kategorie","Unterkategorie","Erwartet","Tatsächlich","Differenz"]
[null,"Wohnen","Hypothek oder Miete",{"v":1000,"d":"1,000.00 €"},{"v":1000,"d":"1,000.00 €"},{"$f":"AusgabenTabelle[[#This Row],[Erwartet]]-AusgabenTabelle[[#This Row],[Tatsächlich]]","v":{"v":0,"d":"0.00 €"}}]
[null,"Wohnen","Zweite Hypothek oder Miete",{"v":0,"d":"0.00 €"},{"v":0,"d":"0.00 €"},{"$f":"AusgabenTabelle[[#This Row],[Erwartet]]-AusgabenTabelle[[#This Row],[Tatsächlich]]","v":{"v":0,"d":"0.00 €"}}]
[null,"Wohnen","Telefon",{"v":54,"d":"54.00 €"},{"v":100,"d":"100.00 €"},{"$f":"AusgabenTabelle[[#This Row],[Erwartet]]-AusgabenTabelle[[#This Row],[Tatsächlich]]","v":{"v":-46,"d":"-46.00 €"}}]
[null,"Wohnen","Strom",{"v":44,"d":"44.00 €"},{"v":56,"d":"56.00 €"},{"$f":"AusgabenTabelle[[#This Row],[Erwartet]]-AusgabenTabelle[[#This Row],[Tatsächlich]]","v":{"v":-12,"d":"-12.00 €"}}]
[null,"Wohnen","Gas",{"v":22,"d":"22.00 €"},{"v":28,"d":"28.00 €"},{"$f":"AusgabenTabelle[[#This Row],[Erwartet]]-AusgabenTabelle[[#This Row],[Tatsächlich]]","v":{"v":-6,"d":"-6.00 €"}}]
[null,"Wohnen","Wasser und Abwasser",{"v":8,"d":"8.00 €"},{"v":8,"d":"8.00 €"},{"$f":"AusgabenTabelle[[#This Row],[Erwartet]]-AusgabenTabelle[[#This Row],[Tatsächlich]]","v":{"v":0,"d":"0.00 €"}}]
[null,"Wohnen","Kabelfernsehen",{"v":34,"d":"34.00 €"},{"v":34,"d":"34.00 €"},{"$f":"AusgabenTabelle[[#This Row],[Erwartet]]-AusgabenTabelle[[#This Row],[Tatsächlich]]","v":{"v":0,"d":"0.00 €"}}]
[null,"Wohnen","Müllabfuhr",{"v":10,"d":"10.00 €"},{"v":10,"d":"10.00 €"},{"$f":"AusgabenTabelle[[#This Row],[Erwartet]]-AusgabenTabelle[[#This Row],[Tatsächlich]]","v":{"v":0,"d":"0.00 €"}}]
[null,"Wohnen","Wartung oder Reparaturen",{"v":23,"d":"23.00 €"},{"v":0,"d":"0.00 €"},{"$f":"AusgabenTabelle[[#This Row],[Erwartet]]-AusgabenTabelle[[#This Row],[Tatsächlich]]","v":{"v":23,"d":"23.00 €"}}]
[null,"Wohnen","Lehrmittel",{"v":0,"d":"0.00 €"},{"v":0,"d":"0.00 €"},{"$f":"AusgabenTabelle[[#This Row],[Erwartet]]-AusgabenTabelle[[#This Row],[Tatsächlich]]","v":{"v":0,"d":"0.00 €"}}]
[null,"Wohnen","Sonstiges",{"v":0,"d":"0.00 €"},{"v":0,"d":"0.00 €"},{"$f":"AusgabenTabelle[[#This Row],[Erwartet]]-AusgabenTabelle[[#This Row],[Tatsächlich]]","v":{"v":0,"d":"0.00 €"}}]
[null,"Verkehrsmittel","Zahlung Fahrzeug 1",{"v":16,"d":"16.00 €"},{"v":66,"d":"66.00 €"},{"$f":"AusgabenTabelle[[#This Row],[Erwartet]]-AusgabenTabelle[[#This Row],[Tatsächlich]]","v":{"v":-50,"d":"-50.00 €"}}]
[null,"Verkehrsmittel","Zahlung Fahrzeug 2",{"v":35,"d":"35.00 €"},{"v":42,"d":"42.00 €"},{"$f":"AusgabenTabelle[[#This Row],[Erwartet]]-AusgabenTabelle[[#This Row],[Tatsächlich]]","v":{"v":-7,"d":"-7.00 €"}}]
[null,"Verkehrsmittel","Bus-/Taxikosten",{"v":1,"d":"1.00 €"},{"v":62,"d":"62.00 €"},{"$f":"AusgabenTabelle[[#This Row],[Erwartet]]-AusgabenTabelle[[#This Row],[Tatsächlich]]","v":{"v":-61,"d":"-61.00 €"}}]
[null,"Verkehrsmittel","Versicherungen",{"v":91,"d":"91.00 €"},{"v":27,"d":"27.00 €"},{"$f":"AusgabenTabelle[[#This Row],[Erwartet]]-AusgabenTabelle[[#This Row],[Tatsächlich]]","v":{"v":64,"d":"64.00 €"}}]
[null,"Verkehrsmittel","Kfz-Steuer",{"v":80,"d":"80.00 €"},{"v":89,"d":"89.00 €"},{"$f":"AusgabenTabelle[[#This Row],[Erwartet]]-AusgabenTabelle[[#This Row],[Tatsächlich]]","v":{"v":-9,"d":"-9.00 €"}}]
[null,"Verkehrsmittel","Kraftstoff",{"v":18,"d":"18.00 €"},{"v":93,"d":"93.00 €"},{"$f":"AusgabenTabelle[[#This Row],[Erwartet]]-AusgabenTabelle[[#This Row],[Tatsächlich]]","v":{"v":-75,"d":"-75.00 €"}}]
[null,"Verkehrsmittel","Wartung",{"v":34,"d":"34.00 €"},{"v":37,"d":"37.00 €"},{"$f":"AusgabenTabelle[[#This Row],[Erwartet]]-AusgabenTabelle[[#This Row],[Tatsächlich]]","v":{"v":-3,"d":"-3.00 €"}}]
[null,"Verkehrsmittel","Sonstiges",{"v":83,"d":"83.00 €"},{"v":61,"d":"61.00 €"},{"$f":"AusgabenTabelle[[#This Row],[Erwartet]]-AusgabenTabelle[[#This Row],[Tatsächlich]]","v":{"v":22,"d":"22.00 €"}}]
[null,"Versicherungen","Haus",{"v":48,"d":"48.00 €"},{"v":63,"d":"63.00 €"},{"$f":"AusgabenTabelle[[#This Row],[Erwartet]]-AusgabenTabelle[[#This Row],[Tatsächlich]]","v":{"v":-15,"d":"-15.00 €"}}]
[null,"Versicherungen","Krankenversicherung",{"v":21,"d":"21.00 €"},{"v":44,"d":"44.00 €"},{"$f":"AusgabenTabelle[[#This Row],[Erwartet]]-AusgabenTabelle[[#This Row],[Tatsächlich]]","v":{"v":-23,"d":"-23.00 €"}}]
[null,"Versicherungen","Lebensversicherung",{"v":35,"d":"35.00 €"},{"v":65,"d":"65.00 €"},{"$f":"AusgabenTabelle[[#This Row],[Erwartet]]-AusgabenTabelle[[#This Row],[Tatsächlich]]","v":{"v":-30,"d":"-30.00 €"}}]
[null,"Versicherungen","Sonstiges",{"v":14,"d":"14.00 €"},{"v":75,"d":"75.00 €"},{"$f":"AusgabenTabelle[[#This Row],[Erwartet]]-AusgabenTabelle[[#This Row],[Tatsächlich]]","v":{"v":-61,"d":"-61.00 €"}}]
[null,"Essen","Lebensmittel",{"v":79,"d":"79.00 €"},{"v":0,"d":"0.00 €"},{"$f":"AusgabenTabelle[[#This Row],[Erwartet]]-AusgabenTabelle[[#This Row],[Tatsächlich]]","v":{"v":79,"d":"79.00 €"}}]
[null,"Essen","Ausgehen",{"v":56,"d":"56.00 €"},{"v":50,"d":"50.00 €"},{"$f":"AusgabenTabelle[[#This Row],[Erwartet]]-AusgabenTabelle[[#This Row],[Tatsächlich]]","v":{"v":6,"d":"6.00 €"}}]
[null,"Essen","Sonstiges",{"v":96,"d":"96.00 €"},{"v":23,"d":"23.00 €"},{"$f":"AusgabenTabelle[[#This Row],[Erwartet]]-AusgabenTabelle[[#This Row],[Tatsächlich]]","v":{"v":73,"d":"73.00 €"}}]
[null,"Kinder","Arztkosten",{"v":90,"d":"90.00 €"},{"v":90,"d":"90.00 €"},{"$f":"AusgabenTabelle[[#This Row],[Erwartet]]-AusgabenTabelle[[#This Row],[Tatsächlich]]","v":{"v":0,"d":"0.00 €"}}]
[null,"Kinder","Kleidung",{"v":33,"d":"33.00 €"},{"v":30,"d":"30.00 €"},{"$f":"AusgabenTabelle[[#This Row],[Erwartet]]-AusgabenTabelle[[#This Row],[Tatsächlich]]","v":{"v":3,"d":"3.00 €"}}]
[null,"Kinder","Unterrichtsgebühren",{"v":86,"d":"86.00 €"},{"v":64,"d":"64.00 €"},{"$f":"AusgabenTabelle[[#This Row],[Erwartet]]-AusgabenTabelle[[#This Row],[Tatsächlich]]","v":{"v":22,"d":"22.00 €"}}]
[null,"Kinder","Schulmaterialien",{"v":76,"d":"76.00 €"},{"v":2,"d":"2.00 €"},{"$f":"AusgabenTabelle[[#This Row],[Erwartet]]-AusgabenTabelle[[#This Row],[Tatsächlich]]","v":{"v":74,"d":"74.00 €"}}]
[null,"Kinder","Vereinsbeiträge",{"v":60,"d":"60.00 €"},{"v":90,"d":"90.00 €"},{"$f":"AusgabenTabelle[[#This Row],[Erwartet]]-AusgabenTabelle[[#This Row],[Tatsächlich]]","v":{"v":-30,"d":"-30.00 €"}}]
[null,"Kinder","Mittagessen",{"v":37,"d":"37.00 €"},{"v":60,"d":"60.00 €"},{"$f":"AusgabenTabelle[[#This Row],[Erwartet]]-AusgabenTabelle[[#This Row],[Tatsächlich]]","v":{"v":-23,"d":"-23.00 €"}}]
[null,"Kinder","Kinderbetreuung",{"v":22,"d":"22.00 €"},{"v":70,"d":"70.00 €"},{"$f":"AusgabenTabelle[[#This Row],[Erwartet]]-AusgabenTabelle[[#This Row],[Tatsächlich]]","v":{"v":-48,"d":"-48.00 €"}}]
[null,"Kinder","Spielzeug/Spiele",{"v":80,"d":"80.00 €"},{"v":21,"d":"21.00 €"},{"$f":"AusgabenTabelle[[#This Row],[Erwartet]]-AusgabenTabelle[[#This Row],[Tatsächlich]]","v":{"v":59,"d":"59.00 €"}}]
[null,"Kinder","Sonstiges",{"v":65,"d":"65.00 €"},{"v":20,"d":"20.00 €"},{"$f":"AusgabenTabelle[[#This Row],[Erwartet]]-AusgabenTabelle[[#This Row],[Tatsächlich]]","v":{"v":45,"d":"45.00 €"}}]
[null,"Haustiere","Essen",{"v":37,"d":"37.00 €"},{"v":34,"d":"34.00 €"},{"$f":"AusgabenTabelle[[#This Row],[Erwartet]]-AusgabenTabelle[[#This Row],[Tatsächlich]]","v":{"v":3,"d":"3.00 €"}}]
[null,"Haustiere","Arztkosten",{"v":74,"d":"74.00 €"},{"v":86,"d":"86.00 €"},{"$f":"AusgabenTabelle[[#This Row],[Erwartet]]-AusgabenTabelle[[#This Row],[Tatsächlich]]","v":{"v":-12,"d":"-12.00 €"}}]
[null,"Haustiere","Fellpflege",{"v":80,"d":"80.00 €"},{"v":92,"d":"92.00 €"},{"$f":"AusgabenTabelle[[#This Row],[Erwartet]]-AusgabenTabelle[[#This Row],[Tatsächlich]]","v":{"v":-12,"d":"-12.00 €"}}]
[null,"Haustiere","Spielzeuge",{"v":61,"d":"61.00 €"},{"v":22,"d":"22.00 €"},{"$f":"AusgabenTabelle[[#This Row],[Erwartet]]-AusgabenTabelle[[#This Row],[Tatsächlich]]","v":{"v":39,"d":"39.00 €"}}]
[null,"Haustiere","Sonstiges",{"v":83,"d":"83.00 €"},{"v":51,"d":"51.00 €"},{"$f":"AusgabenTabelle[[#This Row],[Erwartet]]-AusgabenTabelle[[#This Row],[Tatsächlich]]","v":{"v":32,"d":"32.00 €"}}]
[null,"Persönlicher Bedarf","Arztkosten",{"v":28,"d":"28.00 €"},{"v":10,"d":"10.00 €"},{"$f":"AusgabenTabelle[[#This Row],[Erwartet]]-AusgabenTabelle[[#This Row],[Tatsächlich]]","v":{"v":18,"d":"18.00 €"}}]
[null,"Persönlicher Bedarf","Haare/Nägel",{"v":25,"d":"25.00 €"},{"v":81,"d":"81.00 €"},{"$f":"AusgabenTabelle[[#This Row],[Erwartet]]-AusgabenTabelle[[#This Row],[Tatsächlich]]","v":{"v":-56,"d":"-56.00 €"}}]
[null,"Persönlicher Bedarf","Kleidung",{"v":59,"d":"59.00 €"},{"v":72,"d":"72.00 €"},{"$f":"AusgabenTabelle[[#This Row],[Erwartet]]-AusgabenTabelle[[#This Row],[Tatsächlich]]","v":{"v":-13,"d":"-13.00 €"}}]
[null,"Persönlicher Bedarf","Chemische Reinigung",{"v":89,"d":"89.00 €"},{"v":90,"d":"90.00 €"},{"$f":"AusgabenTabelle[[#This Row],[Erwartet]]-AusgabenTabelle[[#This Row],[Tatsächlich]]","v":{"v":-1,"d":"-1.00 €"}}]
[null,"Persönlicher Bedarf","Fitnesscenter",{"v":78,"d":"78.00 €"},{"v":48,"d":"48.00 €"},{"$f":"AusgabenTabelle[[#This Row],[Erwartet]]-AusgabenTabelle[[#This Row],[Tatsächlich]]","v":{"v":30,"d":"30.00 €"}}]
[null,"Persönlicher Bedarf","Vereinsbeiträge",{"v":6,"d":"6.00 €"},{"v":73,"d":"73.00 €"},{"$f":"AusgabenTabelle[[#This Row],[Erwartet]]-AusgabenTabelle[[#This Row],[Tatsächlich]]","v":{"v":-67,"d":"-67.00 €"}}]
[null,"Persönlicher Bedarf","Sonstiges",{"v":80,"d":"80.00 €"},{"v":66,"d":"66.00 €"},{"$f":"AusgabenTabelle[[#This Row],[Erwartet]]-AusgabenTabelle[[#This Row],[Tatsächlich]]","v":{"v":14,"d":"14.00 €"}}]
[null,"Unterhaltung","Video/DVD",{"v":11,"d":"11.00 €"},{"v":29,"d":"29.00 €"},{"$f":"AusgabenTabelle[[#This Row],[Erwartet]]-AusgabenTabelle[[#This Row],[Tatsächlich]]","v":{"v":-18,"d":"-18.00 €"}}]
[null,"Unterhaltung","CDs",{"v":77,"d":"77.00 €"},{"v":32,"d":"32.00 €"},{"$f":"AusgabenTabelle[[#This Row],[Erwartet]]-AusgabenTabelle[[#This Row],[Tatsächlich]]","v":{"v":45,"d":"45.00 €"}}]
[null,"Unterhaltung","Filme",{"v":71,"d":"71.00 €"},{"v":43,"d":"43.00 €"},{"$f":"AusgabenTabelle[[#This Row],[Erwartet]]-AusgabenTabelle[[#This Row],[Tatsächlich]]","v":{"v":28,"d":"28.00 €"}}]
[null,"Unterhaltung","Konzerte",{"v":64,"d":"64.00 €"},{"v":21,"d":"21.00 €"},{"$f":"AusgabenTabelle[[#This Row],[Erwartet]]-AusgabenTabelle[[#This Row],[Tatsächlich]]","v":{"v":43,"d":"43.00 €"}}]
[null,"Unterhaltung","Sportveranstaltungen",{"v":47,"d":"47.00 €"},{"v":57,"d":"57.00 €"},{"$f":"AusgabenTabelle[[#This Row],[Erwartet]]-AusgabenTabelle[[#This Row],[Tatsächlich]]","v":{"v":-10,"d":"-10.00 €"}}]
[null,"Unterhaltung","Theater",{"v":28,"d":"28.00 €"},{"v":1,"d":"1.00 €"},{"$f":"AusgabenTabelle[[#This Row],[Erwartet]]-AusgabenTabelle[[#This Row],[Tatsächlich]]","v":{"v":27,"d":"27.00 €"}}]
[null,"Unterhaltung","Sonstiges",{"v":13,"d":"13.00 €"},{"v":42,"d":"42.00 €"},{"$f":"AusgabenTabelle[[#This Row],[Erwartet]]-AusgabenTabelle[[#This Row],[Tatsächlich]]","v":{"v":-29,"d":"-29.00 €"}}]
[null,"Kredite","Privates",{"v":65,"d":"65.00 €"},{"v":6,"d":"6.00 €"},{"$f":"AusgabenTabelle[[#This Row],[Erwartet]]-AusgabenTabelle[[#This Row],[Tatsächlich]]","v":{"v":59,"d":"59.00 €"}}]
[null,"Kredite","Studium",{"v":100,"d":"100.00 €"},{"v":36,"d":"36.00 €"},{"$f":"AusgabenTabelle[[#This Row],[Erwartet]]-AusgabenTabelle[[#This Row],[Tatsächlich]]","v":{"v":64,"d":"64.00 €"}}]
[null,"Kredite","Kreditkarte",{"v":29,"d":"29.00 €"},{"v":69,"d":"69.00 €"},{"$f":"AusgabenTabelle[[#This Row],[Erwartet]]-AusgabenTabelle[[#This Row],[Tatsächlich]]","v":{"v":-40,"d":"-40.00 €"}}]
[null,"Kredite","Kreditkarte",{"v":64,"d":"64.00 €"},{"v":3,"d":"3.00 €"},{"$f":"AusgabenTabelle[[#This Row],[Erwartet]]-AusgabenTabelle[[#This Row],[Tatsächlich]]","v":{"v":61,"d":"61.00 €"}}]
[null,"Kredite","Kreditkarte",{"v":34,"d":"34.00 €"},{"v":35,"d":"35.00 €"},{"$f":"AusgabenTabelle[[#This Row],[Erwartet]]-AusgabenTabelle[[#This Row],[Tatsächlich]]","v":{"v":-1,"d":"-1.00 €"}}]
[null,"Kredite","Sonstiges",{"v":38,"d":"38.00 €"},{"v":52,"d":"52.00 €"},{"$f":"AusgabenTabelle[[#This Row],[Erwartet]]-AusgabenTabelle[[#This Row],[Tatsächlich]]","v":{"v":-14,"d":"-14.00 €"}}]
[null,"Steuern","EkSt",{"v":84,"d":"84.00 €"},{"v":36,"d":"36.00 €"},{"$f":"AusgabenTabelle[[#This Row],[Erwartet]]-AusgabenTabelle[[#This Row],[Tatsächlich]]","v":{"v":48,"d":"48.00 €"}}]
[null,"Steuern","USt",{"v":2,"d":"2.00 €"},{"v":83,"d":"83.00 €"},{"$f":"AusgabenTabelle[[#This Row],[Erwartet]]-AusgabenTabelle[[#This Row],[Tatsächlich]]","v":{"v":-81,"d":"-81.00 €"}}]
[null,"Steuern","Kommunalsteuern",{"v":40,"d":"40.00 €"},{"v":20,"d":"20.00 €"},{"$f":"AusgabenTabelle[[#This Row],[Erwartet]]-AusgabenTabelle[[#This Row],[Tatsächlich]]","v":{"v":20,"d":"20.00 €"}}]
[null,"Steuern","Sonstiges",{"v":35,"d":"35.00 €"},{"v":72,"d":"72.00 €"},{"$f":"AusgabenTabelle[[#This Row],[Erwartet]]-AusgabenTabelle[[#This Row],[Tatsächlich]]","v":{"v":-37,"d":"-37.00 €"}}]
[null,"Spareinlagen oder Investitionen","Altersvorsorgekonto",{"v":34,"d":"34.00 €"},{"v":20,"d":"20.00 €"},{"$f":"AusgabenTabelle[[#This Row],[Erwartet]]-AusgabenTabelle[[#This Row],[Tatsächlich]]","v":{"v":14,"d":"14.00 €"}}]
[null,"Spareinlagen oder Investitionen","Investmentkonto",{"v":68,"d":"68.00 €"},{"v":98,"d":"98.00 €"},{"$f":"AusgabenTabelle[[#This Row],[Erwartet]]-AusgabenTabelle[[#This Row],[Tatsächlich]]","v":{"v":-30,"d":"-30.00 €"}}]
[null,"Spareinlagen oder Investitionen","Hochschule",{"v":89,"d":"89.00 €"},{"v":68,"d":"68.00 €"},{"$f":"AusgabenTabelle[[#This Row],[Erwartet]]-AusgabenTabelle[[#This Row],[Tatsächlich]]","v":{"v":21,"d":"21.00 €"}}]
[null,"Spareinlagen oder Investitionen","Sonstiges",{"v":82,"d":"82.00 €"},{"v":26,"d":"26.00 €"},{"$f":"AusgabenTabelle[[#This Row],[Erwartet]]-AusgabenTabelle[[#This Row],[Tatsächlich]]","v":{"v":56,"d":"56.00 €"}}]
[null,"Geschenke und Spenden","Spenden 1",{"v":41,"d":"41.00 €"},{"v":85,"d":"85.00 €"},{"$f":"AusgabenTabelle[[#This Row],[Erwartet]]-AusgabenTabelle[[#This Row],[Tatsächlich]]","v":{"v":-44,"d":"-44.00 €"}}]
[null,"Geschenke und Spenden","Spenden 2",{"v":0,"d":"0.00 €"},{"v":69,"d":"69.00 €"},{"$f":"AusgabenTabelle[[#This Row],[Erwartet]]-AusgabenTabelle[[#This Row],[Tatsächlich]]","v":{"v":-69,"d":"-69.00 €"}}]
[null,"Geschenke und Spenden","Spenden 3",{"v":2,"d":"2.00 €"},{"v":57,"d":"57.00 €"},{"$f":"AusgabenTabelle[[#This Row],[Erwartet]]-AusgabenTabelle[[#This Row],[Tatsächlich]]","v":{"v":-55,"d":"-55.00 €"}}]
[null,"Rechtskosten","Anwalt",{"v":7,"d":"7.00 €"},{"v":98,"d":"98.00 €"},{"$f":"AusgabenTabelle[[#This Row],[Erwartet]]-AusgabenTabelle[[#This Row],[Tatsächlich]]","v":{"v":-91,"d":"-91.00 €"}}]
[null,"Rechtskosten","Unterhalt",{"v":39,"d":"39.00 €"},{"v":85,"d":"85.00 €"},{"$f":"AusgabenTabelle[[#This Row],[Erwartet]]-AusgabenTabelle[[#This Row],[Tatsächlich]]","v":{"v":-46,"d":"-46.00 €"}}]
[null,"Rechtskosten","Zahlungen für Pfändungen oder Gerichtsurteile",{"v":78,"d":"78.00 €"},{"v":84,"d":"84.00 €"},{"$f":"AusgabenTabelle[[#This Row],[Erwartet]]-AusgabenTabelle[[#This Row],[Tatsächlich]]","v":{"v":-6,"d":"-6.00 €"}}]
[null,"Rechtskosten","Sonstiges",{"v":93,"d":"93.00 €"},{"v":71,"d":"71.00 €"},{"$f":"AusgabenTabelle[[#This Row],[Erwartet]]-AusgabenTabelle[[#This Row],[Tatsächlich]]","v":{"v":22,"d":"22.00 €"}}]
[null,"Summe",{"$nulls":3},{"$f":"SUBTOTAL(109,AusgabenTabelle[Differenz])","v":{"v":-117,"d":"-117.00 €"}}]